[Event "*** Titled Tuesday Blitz"]
[Site "Chess.com"]
[Date "2021.02.02"]
[Round "5"]
[White "MikeSailer"]
[Black "mfwagnerpeixoto"]
[Result "1-0"]
[WhiteElo "2189"]
[BlackElo "2330"]
[TimeControl "180+1"]
[EndTime "10:59:26 PST"]
[Termination "MikeSailer won on time"]

1. d4 {[%clk 0:03:00.9]} 1... d5 {[%clk 0:02:58.1]} 2. Nf3 {[%clk 0:03:01.2]}
2... c6 {[%clk 0:02:58]} 3. Bf4 {[%clk 0:03:00.8]} 3... Nf6 {[%clk 0:02:55.8]}
4. e3 {[%clk 0:03:01]} 4... g6 {[%clk 0:02:45.9]} 5. Be2 {[%clk 0:02:59]} 5...
Bg7 {[%clk 0:02:46.1]} 6. h3 {[%clk 0:02:53.8]} 6... O-O {[%clk 0:02:45.5]} 7.
O-O {[%clk 0:02:48.9]} 7... Bf5 {[%clk 0:02:40.9]} 8. c4 {[%clk 0:02:46.9]} 8...
dxc4 {[%clk 0:02:37.4]} 9. Bxc4 {[%clk 0:02:45.9]} 9... b5 {[%clk 0:02:37.7]}
10. Be2 {[%clk 0:02:40.1]} 10... Nd5 {[%clk 0:02:35.3]} 11. Bh2 {[%clk
0:02:37.9]} 11... a6 {[%clk 0:02:31.6]} 12. Nbd2 {[%clk 0:02:37.3]} 12... Nf6
{[%clk 0:02:22.9]} 13. Rc1 {[%clk 0:02:34.9]} 13... Be6 {[%clk 0:02:13.4]} 14.
a3 {[%clk 0:02:30.1]} 14... Bd5 {[%clk 0:02:12.3]} 15. Ne5 {[%clk 0:02:25.4]}
15... Nfd7 {[%clk 0:02:08.7]} 16. Nb3 {[%clk 0:02:08.1]} 16... Nxe5 {[%clk
0:02:05.7]} 17. Bxe5 {[%clk 0:02:05.1]} 17... Bxe5 {[%clk 0:02:05.3]} 18. dxe5
{[%clk 0:02:05.3]} 18... Nd7 {[%clk 0:02:05.5]} 19. f4 {[%clk 0:02:01.7]} 19...
Qb6 {[%clk 0:01:59.1]} 20. Nd4 {[%clk 0:01:52]} 20... e6 {[%clk 0:01:52.5]} 21.
Bf3 {[%clk 0:01:43]} 21... Nc5 {[%clk 0:01:40.1]} 22. Qc2 {[%clk 0:01:24.8]}
22... Nd7 {[%clk 0:01:16.5]} 23. Nxc6 {[%clk 0:01:20.7]} 23... Qxe3+ {[%clk
0:01:13.1]} 24. Kh1 {[%clk 0:01:16.9]} 24... Bxf3 {[%clk 0:00:57.4]} 25. Rxf3
{[%clk 0:01:11.2]} 25... Qb6 {[%clk 0:00:57.1]} 26. Rd3 {[%clk 0:01:00.5]} 26...
Qb7 {[%clk 0:00:33.9]} 27. Ne7+ {[%clk 0:00:44.6]} 27... Kg7 {[%clk 0:00:33.2]}
28. Qc7 {[%clk 0:00:45.1]} 28... Qxc7 {[%clk 0:00:32.7]} 29. Rxc7 {[%clk
0:00:44.2]} 29... Nb6 {[%clk 0:00:32.3]} 30. Nc6 {[%clk 0:00:38.8]} 30... Nd5
{[%clk 0:00:29.6]} 31. Rb7 {[%clk 0:00:34.5]} 31... Nxf4 {[%clk 0:00:28.2]} 32.
Rdd7 {[%clk 0:00:34.1]} 32... Rac8 {[%clk 0:00:23.7]} 33. Nd4 {[%clk 0:00:29.6]}
33... Rc1+ {[%clk 0:00:20.5]} 34. Kh2 {[%clk 0:00:29.3]} 34... Kg8 {[%clk
0:00:17.3]} 35. g3 {[%clk 0:00:26.5]} 35... Nh5 {[%clk 0:00:16.1]} 36. g4 {[%clk
0:00:22.2]} 36... Nf4 {[%clk 0:00:15.5]} 37. Kg3 {[%clk 0:00:22.1]} 37... g5
{[%clk 0:00:15.2]} 38. h4 {[%clk 0:00:22.1]} 38... h6 {[%clk 0:00:14.4]} 39.
hxg5 {[%clk 0:00:22.1]} 39... hxg5 {[%clk 0:00:15.3]} 40. Nf3 {[%clk 0:00:21.7]}
40... Nd5 {[%clk 0:00:09.1]} 41. Nxg5 {[%clk 0:00:20.9]} 41... Rc2 {[%clk
0:00:08]} 42. Nxe6 {[%clk 0:00:19.9]} 42... Re8 {[%clk 0:00:05.4]} 43. Ng5
{[%clk 0:00:11.7]} 43... Rxe5 {[%clk 0:00:05.3]} 44. Nxf7 {[%clk 0:00:11.8]}
44... Re3+ {[%clk 0:00:05.1]} 45. Kh4 {[%clk 0:00:10.7]} 45... Rh2+ {[%clk
0:00:05]} 46. Kg5 {[%clk 0:00:10.8]} 46... Kf8 {[%clk 0:00:02.7]} 47. Nh6 {[%clk
0:00:04.5]} 47... Rxh6 {[%clk 0:00:01.6]} 48. Rf7+ {[%clk 0:00:03.9]} 48... Ke8
{[%clk 0:00:01.2]} 49. Kxh6 {[%clk 0:00:04.7]} 1-0

[Event "*** Titled Tuesday Blitz"]
[Site "Chess.com"]
[Date "2021.02.02"]
[Round "5"]
[White "federicosellitti"]
[Black "IMAghasiyevKamal"]
[Result "1-0"]
[WhiteElo "2439"]
[BlackElo "2580"]
[TimeControl "180+1"]
[EndTime "10:59:27 PST"]
[Termination "federicosellitti won by resignation"]

1. e4 {[%clk 0:03:00.9]} 1... e5 {[%clk 0:02:59.2]} 2. Nc3 {[%clk 0:03:01.2]}
2... Nf6 {[%clk 0:02:57.8]} 3. f4 {[%clk 0:03:01.5]} 3... d5 {[%clk 0:02:56.6]}
4. fxe5 {[%clk 0:03:02.1]} 4... Nxe4 {[%clk 0:02:54.8]} 5. Qf3 {[%clk
0:03:02.5]} 5... Nxc3 {[%clk 0:02:51.4]} 6. dxc3 {[%clk 0:03:03.4]} 6... Qh4+
{[%clk 0:02:50.6]} 7. g3 {[%clk 0:03:02.9]} 7... Qe4+ {[%clk 0:02:50.7]} 8. Qxe4
{[%clk 0:03:02.9]} 8... dxe4 {[%clk 0:02:51.1]} 9. Bg2 {[%clk 0:02:58.3]} 9...
Bf5 {[%clk 0:02:46]} 10. Bf4 {[%clk 0:02:55.5]} 10... Nc6 {[%clk 0:02:40.6]} 11.
O-O-O {[%clk 0:02:56.1]} 11... Be7 {[%clk 0:02:35]} 12. h4 {[%clk 0:02:46]}
12... Rd8 {[%clk 0:02:26.1]} 13. Ne2 {[%clk 0:02:44.3]} 13... h6 {[%clk
0:02:17.6]} 14. Rxd8+ {[%clk 0:02:18.9]} 14... Bxd8 {[%clk 0:02:13.6]} 15. Nd4
{[%clk 0:02:19.8]} 15... Nxd4 {[%clk 0:02:01.9]} 16. cxd4 {[%clk 0:02:20.7]}
16... c6 {[%clk 0:02:02.4]} 17. Re1 {[%clk 0:02:14.4]} 17... g5 {[%clk
0:02:01.9]} 18. hxg5 {[%clk 0:02:04]} 18... hxg5 {[%clk 0:02:02.1]} 19. Bd2
{[%clk 0:02:03.8]} 19... Rh2 {[%clk 0:01:52.5]} 20. Bxe4 {[%clk 0:01:54.4]}
20... Bxe4 {[%clk 0:01:52.8]} 21. Rxe4 {[%clk 0:01:55.3]} 21... Rg2 {[%clk
0:01:52.7]} 22. Be1 {[%clk 0:01:49.9]} 22... Kd7 {[%clk 0:01:46.6]} 23. Kd1
{[%clk 0:01:38.4]} 23... b5 {[%clk 0:01:26.6]} 24. Re2 {[%clk 0:01:38.2]} 24...
Rg1 {[%clk 0:01:26.5]} 25. Kd2 {[%clk 0:01:30.3]} 25... Ke6 {[%clk 0:01:24.2]}
26. c3 {[%clk 0:01:19.2]} 26... Kd5 {[%clk 0:01:03.3]} 27. Rh2 {[%clk
0:00:56.6]} 27... g4 {[%clk 0:00:55.1]} 28. Ke2 {[%clk 0:00:52.3]} 28... Bg5
{[%clk 0:00:39.5]} 29. Rh5 {[%clk 0:00:26.1]} 29... Bc1 {[%clk 0:00:34.4]} 30.
b3 {[%clk 0:00:17.8]} 30... Ke4 {[%clk 0:00:31]} 31. Rh4 {[%clk 0:00:08.8]}
31... Kf5 {[%clk 0:00:24.1]} 32. Rh5+ {[%clk 0:00:08.2]} 32... Ke4 {[%clk
0:00:23.2]} 33. Rh4 {[%clk 0:00:08.5]} 33... Rg2+ {[%clk 0:00:22.2]} 34. Bf2
{[%clk 0:00:08.4]} 34... Kf5 {[%clk 0:00:09.1]} 35. Kf1 {[%clk 0:00:07.2]} 35...
Rxf2+ {[%clk 0:00:09]} 36. Kxf2 {[%clk 0:00:07.6]} 36... Bd2 {[%clk 0:00:09.9]}
37. c4 {[%clk 0:00:06.9]} 37... Bc3 {[%clk 0:00:09.9]} 38. Rh5+ {[%clk
0:00:03.9]} 38... Ke4 {[%clk 0:00:10]} 39. d5 {[%clk 0:00:03.6]} 39... cxd5
{[%clk 0:00:09]} 40. cxd5 {[%clk 0:00:04.5]} 40... Bxe5 {[%clk 0:00:09.4]} 41.
d6 {[%clk 0:00:04.1]} 41... Bxd6 {[%clk 0:00:09.3]} 42. Rxb5 {[%clk 0:00:04.8]}
42... f5 {[%clk 0:00:09.4]} 43. Ra5 {[%clk 0:00:03.6]} 43... Bb4 {[%clk
0:00:08.2]} 44. Ra4 {[%clk 0:00:03.8]} 44... a5 {[%clk 0:00:08.4]} 45. a3 {[%clk
0:00:04.5]} 45... Kd4 {[%clk 0:00:09]} 46. axb4 {[%clk 0:00:05]} 46... Kc3
{[%clk 0:00:09.6]} 47. bxa5 {[%clk 0:00:05.1]} 47... Kxb3 {[%clk 0:00:10.5]} 48.
Ra1 {[%clk 0:00:05.4]} 48... Kb2 {[%clk 0:00:10.7]} 49. a6 {[%clk 0:00:06]}
49... Kb3 {[%clk 0:00:11.6]} 50. a7 {[%clk 0:00:06.9]} 1-0

[Event "*** Titled Tuesday Blitz"]
[Site "Chess.com"]
[Date "2021.02.02"]
[Round "5"]
[White "Pintacara"]
[Black "BabyBoss31"]
[Result "0-1"]
[WhiteElo "2491"]
[BlackElo "2337"]
[TimeControl "180+1"]
[EndTime "10:59:27 PST"]
[Termination "BabyBoss31 won on time"]

1. d4 {[%clk 0:03:00.9]} 1... d5 {[%clk 0:02:58.1]} 2. Bg5 {[%clk 0:03:00.5]}
2... Nf6 {[%clk 0:02:49.3]} 3. Bxf6 {[%clk 0:03:00.2]} 3... gxf6 {[%clk
0:02:50.2]} 4. e3 {[%clk 0:03:00]} 4... c5 {[%clk 0:02:43.5]} 5. c4 {[%clk
0:02:58]} 5... cxd4 {[%clk 0:02:37.2]} 6. Qxd4 {[%clk 0:02:58.9]} 6... Nc6
{[%clk 0:02:14.8]} 7. Qxd5 {[%clk 0:02:57.6]} 7... Qxd5 {[%clk 0:02:14.7]} 8.
cxd5 {[%clk 0:02:58.5]} 8... Nb4 {[%clk 0:02:15.2]} 9. Na3 {[%clk 0:02:48.6]}
9... Nxd5 {[%clk 0:01:57]} 10. Bb5+ {[%clk 0:02:47.3]} 10... Bd7 {[%clk
0:01:51.9]} 11. Bxd7+ {[%clk 0:02:47.2]} 11... Kxd7 {[%clk 0:01:51.3]} 12. O-O-O
{[%clk 0:02:44.1]} 12... Kc6 {[%clk 0:01:33.4]} 13. Kb1 {[%clk 0:02:11.3]} 13...
e6 {[%clk 0:01:29.7]} 14. e4 {[%clk 0:02:07.9]} 14... Nf4 {[%clk 0:01:05.7]} 15.
Rc1+ {[%clk 0:02:05.9]} 15... Kd7 {[%clk 0:01:03.1]} 16. Nh3 {[%clk 0:01:43]}
16... Nxh3 {[%clk 0:00:50.3]} 17. Rhd1+ {[%clk 0:01:42.7]} 17... Ke8 {[%clk
0:00:36]} 18. gxh3 {[%clk 0:01:16.1]} 18... Bxa3 {[%clk 0:00:35.1]} 19. bxa3
{[%clk 0:01:17]} 19... Rd8 {[%clk 0:00:35.3]} 20. Rxd8+ {[%clk 0:00:48.6]} 20...
Kxd8 {[%clk 0:00:36.2]} 21. Rd1+ {[%clk 0:00:47.7]} 21... Ke7 {[%clk 0:00:34.9]}
22. Rg1 {[%clk 0:00:45]} 22... Rd8 {[%clk 0:00:29.2]} 23. Kc2 {[%clk 0:00:34.6]}
23... Rd4 {[%clk 0:00:22.8]} 24. f3 {[%clk 0:00:32.7]} 24... Kf8 {[%clk
0:00:21.2]} 25. h4 {[%clk 0:00:30]} 25... f5 {[%clk 0:00:17]} 26. exf5 {[%clk
0:00:24.7]} 26... Rxh4 {[%clk 0:00:14.3]} 27. f6 {[%clk 0:00:22.5]} 27... Rxh2+
{[%clk 0:00:13.2]} 28. Kd3 {[%clk 0:00:22.2]} 28... Rh6 {[%clk 0:00:13.7]} 29.
f4 {[%clk 0:00:18.7]} 29... Rxf6 {[%clk 0:00:13.8]} 30. Ke4 {[%clk 0:00:18.4]}
30... Rf5 {[%clk 0:00:13.8]} 31. Rc1 {[%clk 0:00:11.4]} 31... h5 {[%clk
0:00:11.2]} 32. Rc8+ {[%clk 0:00:10.8]} 32... Kg7 {[%clk 0:00:10.6]} 33. Rc7
{[%clk 0:00:09.8]} 33... Rb5 {[%clk 0:00:10.8]} 34. a4 {[%clk 0:00:08.6]} 34...
Rb4+ {[%clk 0:00:10.7]} 35. Kf3 {[%clk 0:00:08.1]} 35... Rxa4 {[%clk 0:00:10.2]}
36. Rxb7 {[%clk 0:00:08.5]} 36... Rxa2 {[%clk 0:00:10.6]} 37. Kg3 {[%clk
0:00:09.3]} 37... Ra4 {[%clk 0:00:10.4]} 38. Rc7 {[%clk 0:00:08.4]} 38... a5
{[%clk 0:00:10.4]} 39. Ra7 {[%clk 0:00:08.1]} 39... Kf6 {[%clk 0:00:09.6]} 40.
Kf3 {[%clk 0:00:07.5]} 40... h4 {[%clk 0:00:09.8]} 41. Kg4 {[%clk 0:00:07.6]}
41... h3 {[%clk 0:00:09.5]} 42. Ra8 {[%clk 0:00:07.2]} 42... Ra3 {[%clk
0:00:09.4]} 43. Rh8 {[%clk 0:00:06.3]} 43... a4 {[%clk 0:00:09.3]} 44. Rh6+
{[%clk 0:00:06.2]} 44... Ke7 {[%clk 0:00:09.4]} 45. Rh8 {[%clk 0:00:06.1]} 45...
Ra1 {[%clk 0:00:06.1]} 46. Rxh3 {[%clk 0:00:05.6]} 46... a3 {[%clk 0:00:06.7]}
47. Rb3 {[%clk 0:00:05.3]} 47... a2 {[%clk 0:00:06.7]} 48. Rb7+ {[%clk 0:00:05]}
48... Kf6 {[%clk 0:00:07.2]} 0-1

[Event "*** Titled Tuesday Blitz"]
[Site "Chess.com"]
[Date "2021.02.02"]
[Round "5"]
[White "BAS8892"]
[Black "Noam_Vitenberg"]
[Result "1-0"]
[WhiteElo "2736"]
[BlackElo "2504"]
[TimeControl "180+1"]
[EndTime "10:59:29 PST"]
[Termination "BAS8892 won by checkmate"]

1. d4 {[%clk 0:02:59.7]} 1... e6 {[%clk 0:02:53.3]} 2. e4 {[%clk 0:02:58]} 2...
d5 {[%clk 0:02:51.6]} 3. Nc3 {[%clk 0:02:57.8]} 3... h6 {[%clk 0:02:43.9]} 4. a3
{[%clk 0:02:43.4]} 4... Nc6 {[%clk 0:02:26.2]} 5. Nf3 {[%clk 0:02:35.4]} 5...
Nf6 {[%clk 0:02:24.7]} 6. e5 {[%clk 0:02:35.2]} 6... Ne4 {[%clk 0:02:24.9]} 7.
Bd2 {[%clk 0:02:17.7]} 7... Be7 {[%clk 0:02:18]} 8. Bd3 {[%clk 0:02:17.2]} 8...
Nxd2 {[%clk 0:01:49.9]} 9. Qxd2 {[%clk 0:02:16.9]} 9... Bg5 {[%clk 0:01:42.2]}
10. Qe2 {[%clk 0:02:10.1]} 10... Bd7 {[%clk 0:01:27.5]} 11. h4 {[%clk
0:02:09.7]} 11... Be7 {[%clk 0:01:25.5]} 12. g4 {[%clk 0:02:09]} 12... Na5
{[%clk 0:01:23.3]} 13. O-O-O {[%clk 0:02:03.9]} 13... Rc8 {[%clk 0:01:14]} 14.
Kb1 {[%clk 0:02:02]} 14... c5 {[%clk 0:01:02.7]} 15. dxc5 {[%clk 0:02:01.8]}
15... Bxc5 {[%clk 0:01:03.6]} 16. Nb5 {[%clk 0:01:59.4]} 16... Qb6 {[%clk
0:00:52]} 17. g5 {[%clk 0:01:55.1]} 17... a6 {[%clk 0:00:40.4]} 18. Nd6+ {[%clk
0:01:54.1]} 18... Bxd6 {[%clk 0:00:40.7]} 19. exd6 {[%clk 0:01:54.2]} 19... Qxd6
{[%clk 0:00:39.4]} 20. g6 {[%clk 0:01:53.3]} 20... f6 {[%clk 0:00:36.9]} 21. c4
{[%clk 0:01:41.4]} 21... O-O {[%clk 0:00:29.1]} 22. cxd5 {[%clk 0:01:41.1]}
22... exd5 {[%clk 0:00:29.4]} 23. Nd4 {[%clk 0:01:40.9]} 23... Rfe8 {[%clk
0:00:27.6]} 24. Qf3 {[%clk 0:01:39.1]} 24... Nc6 {[%clk 0:00:25.2]} 25. Nf5
{[%clk 0:01:34]} 25... Bxf5 {[%clk 0:00:24.2]} 26. Bxf5 {[%clk 0:01:33.9]} 26...
Rcd8 {[%clk 0:00:23.1]} 27. Bc2 {[%clk 0:01:33.8]} 27... Ne5 {[%clk 0:00:20.9]}
28. Qg3 {[%clk 0:01:27.7]} 28... Nc4 {[%clk 0:00:21.2]} 29. Qc3 {[%clk
0:01:22.7]} 29... Qe5 {[%clk 0:00:20]} 30. Rd4 {[%clk 0:01:21.6]} 30... Rc8
{[%clk 0:00:17.2]} 31. Rhd1 {[%clk 0:01:16.3]} 31... Red8 {[%clk 0:00:17.6]} 32.
Qf3 {[%clk 0:01:08.3]} 32... Rc5 {[%clk 0:00:16.2]} 33. Be4 {[%clk 0:01:01.7]}
33... Nb6 {[%clk 0:00:10.7]} 34. Bc2 {[%clk 0:00:57.1]} 34... Rb5 {[%clk
0:00:10]} 35. a4 {[%clk 0:00:53.1]} 35... Rc5 {[%clk 0:00:08.7]} 36. Bb3 {[%clk
0:00:52.6]} 36... Kh8 {[%clk 0:00:08.5]} 37. Rb4 {[%clk 0:00:44.3]} 37... Qd6
{[%clk 0:00:06.3]} 38. Qe3 {[%clk 0:00:34.4]} 38... Rc1+ {[%clk 0:00:05.3]} 39.
Rxc1 {[%clk 0:00:31]} 39... Qxb4 {[%clk 0:00:06.2]} 40. Rc7 {[%clk 0:00:30.8]}
40... Nxa4 {[%clk 0:00:02.8]} 41. Bxa4 {[%clk 0:00:19.6]} 41... Qxa4 {[%clk
0:00:03.7]} 42. Qe7 {[%clk 0:00:16]} 42... Qd1+ {[%clk 0:00:04.2]} 43. Rc1
{[%clk 0:00:15.3]} 43... Qd3+ {[%clk 0:00:04.2]} 44. Ka1 {[%clk 0:00:15.6]}
44... Rg8 {[%clk 0:00:02.5]} 45. h5 {[%clk 0:00:15.6]} 45... Qf5 {[%clk
0:00:02.7]} 46. Qf7 {[%clk 0:00:14.1]} 46... Qxh5 {[%clk 0:00:02.4]} 47. Re1
{[%clk 0:00:14.1]} 47... Qf3 {[%clk 0:00:02.5]} 48. Ka2 {[%clk 0:00:12.4]} 48...
Qxf2 {[%clk 0:00:02.9]} 49. Re8 {[%clk 0:00:11.9]} 49... Rxe8 {[%clk 0:00:01.3]}
50. Qxe8# {[%clk 0:00:12]} 1-0

[Event "*** Titled Tuesday Blitz"]
[Site "Chess.com"]
[Date "2021.02.02"]
[Round "5"]
[White "ARTHURMOTIVATOR"]
[Black "kleopl"]
[Result "0-1"]
[WhiteElo "2311"]
[BlackElo "2503"]
[TimeControl "180+1"]
[EndTime "10:59:29 PST"]
[Termination "kleopl won by resignation"]

1. e4 {[%clk 0:03:00.9]} 1... c6 {[%clk 0:02:59.9]} 2. d4 {[%clk 0:02:59.7]}
2... d5 {[%clk 0:03:00.8]} 3. exd5 {[%clk 0:02:58]} 3... cxd5 {[%clk 0:03:01.7]}
4. Bd3 {[%clk 0:02:58.6]} 4... Nc6 {[%clk 0:03:01.1]} 5. c3 {[%clk 0:02:58.4]}
5... Nf6 {[%clk 0:03:01.7]} 6. h3 {[%clk 0:02:58.7]} 6... g6 {[%clk 0:03:01.7]}
7. Nf3 {[%clk 0:02:58.8]} 7... Bf5 {[%clk 0:03:01.8]} 8. O-O {[%clk 0:02:55.4]}
8... Qd7 {[%clk 0:02:59.4]} 9. Bf4 {[%clk 0:02:53.2]} 9... Bg7 {[%clk
0:02:58.7]} 10. Re1 {[%clk 0:02:51.6]} 10... O-O {[%clk 0:02:57]} 11. Bf1 {[%clk
0:02:50.4]} 11... Bxb1 {[%clk 0:02:55.6]} 12. Rxb1 {[%clk 0:02:49.2]} 12... Rfe8
{[%clk 0:02:48.2]} 13. Bd3 {[%clk 0:02:42.9]} 13... Qc8 {[%clk 0:02:42.7]} 14.
Qd2 {[%clk 0:02:41.8]} 14... Nd7 {[%clk 0:02:40.7]} 15. Bh6 {[%clk 0:02:28.3]}
15... Bh8 {[%clk 0:02:40.1]} 16. Qf4 {[%clk 0:02:15.5]} 16... Qb8 {[%clk
0:02:35.5]} 17. Qg4 {[%clk 0:02:06.3]} 17... Qd6 {[%clk 0:02:32]} 18. h4 {[%clk
0:01:59.1]} 18... Nf6 {[%clk 0:02:27.4]} 19. Qh3 {[%clk 0:01:56.4]} 19... Nh5
{[%clk 0:02:24.1]} 20. Qg4 {[%clk 0:01:44.5]} 20... a6 {[%clk 0:02:17.1]} 21.
Re2 {[%clk 0:01:38.2]} 21... b5 {[%clk 0:02:12.5]} 22. a3 {[%clk 0:01:35.3]}
22... Rab8 {[%clk 0:02:10]} 23. Rbe1 {[%clk 0:01:34.3]} 23... a5 {[%clk
0:02:04.4]} 24. Ne5 {[%clk 0:01:31.2]} 24... Nxe5 {[%clk 0:01:55.6]} 25. dxe5
{[%clk 0:01:31.3]} 25... Qe6 {[%clk 0:01:48.6]} 26. Qxe6 {[%clk 0:01:21.4]}
26... fxe6 {[%clk 0:01:49.5]} 27. g4 {[%clk 0:01:21.5]} 27... Ng7 {[%clk
0:01:42.7]} 28. Bg5 {[%clk 0:01:20.4]} 28... Rb7 {[%clk 0:01:38.7]} 29. Kg2
{[%clk 0:01:17]} 29... Rf8 {[%clk 0:01:34.4]} 30. f3 {[%clk 0:01:03.7]} 30...
Ne8 {[%clk 0:01:33.5]} 31. h5 {[%clk 0:01:00.4]} 31... gxh5 {[%clk 0:01:23.6]}
32. Rh1 {[%clk 0:00:53.3]} 32... Ng7 {[%clk 0:01:20.3]} 33. Bh6 {[%clk 0:00:48]}
33... Rf7 {[%clk 0:01:17.4]} 34. Kg3 {[%clk 0:00:40.1]} 34... b4 {[%clk
0:01:14.1]} 35. cxb4 {[%clk 0:00:38.5]} 35... axb4 {[%clk 0:01:15]} 36. a4
{[%clk 0:00:39.4]} 36... b3 {[%clk 0:01:05.3]} 37. a5 {[%clk 0:00:38.8]} 37...
Rb4 {[%clk 0:00:49.9]} 38. Ra1 {[%clk 0:00:30.9]} 38... Rd4 {[%clk 0:00:40.7]}
39. a6 {[%clk 0:00:26.7]} 39... Rxd3 {[%clk 0:00:40.3]} 40. Rf2 {[%clk
0:00:20.7]} 40... Rf8 {[%clk 0:00:36.7]} 41. a7 {[%clk 0:00:18.5]} 41... Ra8
{[%clk 0:00:36]} 42. Ra6 {[%clk 0:00:19.3]} 42... Ne8 {[%clk 0:00:30.4]} 43.
gxh5 {[%clk 0:00:19]} 43... Bxe5+ {[%clk 0:00:27.2]} 44. Kg4 {[%clk 0:00:17.9]}
44... Bd4 {[%clk 0:00:26.9]} 45. Rg2 {[%clk 0:00:17.4]} 45... Rxa7 {[%clk
0:00:23.6]} 46. Rxe6 {[%clk 0:00:17]} 46... Kf7 {[%clk 0:00:23.4]} 47. Ree2
{[%clk 0:00:16.4]} 47... Nf6+ {[%clk 0:00:22.4]} 48. Kh4 {[%clk 0:00:16.2]}
48... Ra4 {[%clk 0:00:21]} 49. Rg7+ {[%clk 0:00:16.1]} 49... Ke8 {[%clk
0:00:18.9]} 50. Rexe7+ {[%clk 0:00:14.3]} 50... Kd8 {[%clk 0:00:19.2]} 51. Kh3
{[%clk 0:00:09.9]} 51... Rxf3+ {[%clk 0:00:18.6]} 52. Kg2 {[%clk 0:00:08.6]}
52... Rf2+ {[%clk 0:00:18.9]} 53. Kh1 {[%clk 0:00:08.9]} 53... Ra1+ {[%clk
0:00:18.2]} 54. Rg1 {[%clk 0:00:07.8]} 54... Rxg1+ {[%clk 0:00:18.2]} 55. Kxg1
{[%clk 0:00:08.7]} 55... Kxe7 {[%clk 0:00:18.1]} 0-1

[Event "*** Titled Tuesday Blitz"]
[Site "Chess.com"]
[Date "2021.02.02"]
[Round "5"]
[White "KubaGepard"]
[Black "MFBerna"]
[Result "0-1"]
[WhiteElo "2325"]
[BlackElo "2508"]
[TimeControl "180+1"]
[EndTime "10:59:34 PST"]
[Termination "MFBerna won by checkmate"]

1. e4 {[%clk 0:03:00.9]} 1... c6 {[%clk 0:02:59.9]} 2. c4 {[%clk 0:02:57]} 2...
d5 {[%clk 0:03:00.8]} 3. Nc3 {[%clk 0:02:56.1]} 3... d4 {[%clk 0:02:56.8]} 4.
Nce2 {[%clk 0:02:56.1]} 4... c5 {[%clk 0:02:57.2]} 5. d3 {[%clk 0:02:55.8]} 5...
Nc6 {[%clk 0:02:57.5]} 6. f4 {[%clk 0:02:55.5]} 6... e5 {[%clk 0:02:57]} 7. f5
{[%clk 0:02:55.6]} 7... Bd6 {[%clk 0:02:55.8]} 8. g4 {[%clk 0:02:50.7]} 8... Bd7
{[%clk 0:02:33.2]} 9. Nf3 {[%clk 0:02:47.3]} 9... Qc7 {[%clk 0:02:27.1]} 10. h4
{[%clk 0:02:44.3]} 10... a6 {[%clk 0:02:10.5]} 11. a4 {[%clk 0:02:38.1]} 11...
Nb4 {[%clk 0:02:06.7]} 12. g5 {[%clk 0:02:27.4]} 12... Ne7 {[%clk 0:02:00.7]}
13. Bh3 {[%clk 0:02:19.8]} 13... Qa5 {[%clk 0:01:48.8]} 14. Kf2 {[%clk
0:02:17.7]} 14... O-O-O {[%clk 0:01:35.3]} 15. b3 {[%clk 0:02:12]} 15... Kb8
{[%clk 0:01:31.7]} 16. Bb2 {[%clk 0:02:10.6]} 16... Qc7 {[%clk 0:01:22.3]} 17.
Ng3 {[%clk 0:02:08]} 17... Nec6 {[%clk 0:01:18.1]} 18. h5 {[%clk 0:02:04.6]}
18... Na5 {[%clk 0:01:12.8]} 19. Ra3 {[%clk 0:01:45.5]} 19... Qb6 {[%clk
0:00:57.2]} 20. Bg4 {[%clk 0:01:37.7]} 20... Rhe8 {[%clk 0:00:56.3]} 21. Ne1
{[%clk 0:01:33.6]} 21... Qc7 {[%clk 0:00:36.3]} 22. h6 {[%clk 0:01:29.8]} 22...
g6 {[%clk 0:00:35.5]} 23. f6 {[%clk 0:01:28.5]} 23... Be6 {[%clk 0:00:26.6]} 24.
Bxe6 {[%clk 0:01:27]} 24... Rxe6 {[%clk 0:00:27.5]} 25. Nc2 {[%clk 0:01:26.4]}
25... Qb6 {[%clk 0:00:25.6]} 26. Qd2 {[%clk 0:01:21.9]} 26... Nbc6 {[%clk
0:00:22.2]} 27. Na1 {[%clk 0:01:17.2]} 27... Qc7 {[%clk 0:00:22.1]} 28. Qe2
{[%clk 0:01:11.3]} 28... Qb6 {[%clk 0:00:21.6]} 29. Bc1 {[%clk 0:01:09.5]} 29...
Qc7 {[%clk 0:00:21]} 30. Bd2 {[%clk 0:01:07.1]} 30... Qb6 {[%clk 0:00:20.3]} 31.
Qe1 {[%clk 0:01:05.5]} 31... Bc7 {[%clk 0:00:19]} 32. Ne2 {[%clk 0:01:00]} 32...
Rc8 {[%clk 0:00:18.8]} 33. Nc1 {[%clk 0:00:59.8]} 33... Rd8 {[%clk 0:00:18.9]}
34. Nc2 {[%clk 0:00:59.6]} 34... Rc8 {[%clk 0:00:17.7]} 35. Qd1 {[%clk
0:00:52.7]} 35... Bd8 {[%clk 0:00:17.5]} 36. Ne1 {[%clk 0:00:51.8]} 36... Bxf6
{[%clk 0:00:17.2]} 37. gxf6 {[%clk 0:00:51.2]} 37... Rxf6+ {[%clk 0:00:18.1]}
38. Kg2 {[%clk 0:00:51]} 38... Re6 {[%clk 0:00:17.4]} 39. Nf3 {[%clk 0:00:50.3]}
39... f5 {[%clk 0:00:15.4]} 40. Re1 {[%clk 0:00:46.8]} 40... f4 {[%clk
0:00:14.3]} 41. Ng5 {[%clk 0:00:45.3]} 41... Re7 {[%clk 0:00:14.5]} 42. Qg4
{[%clk 0:00:45.4]} 42... Qc7 {[%clk 0:00:13.6]} 43. Rf1 {[%clk 0:00:43.4]} 43...
Rce8 {[%clk 0:00:11.7]} 44. Kh3 {[%clk 0:00:43.1]} 44... Ka7 {[%clk 0:00:11.7]}
45. Rf3 {[%clk 0:00:42.7]} 45... Qb6 {[%clk 0:00:11.8]} 46. Kh4 {[%clk
0:00:41.7]} 46... Nb4 {[%clk 0:00:11.9]} 47. Rf2 {[%clk 0:00:34.5]} 47... Nac6
{[%clk 0:00:11.9]} 48. Qd1 {[%clk 0:00:32.8]} 48... Qc7 {[%clk 0:00:11.6]} 49.
Na2 {[%clk 0:00:27.7]} 49... Qb6 {[%clk 0:00:10.3]} 50. Nxb4 {[%clk 0:00:24.9]}
50... Nxb4 {[%clk 0:00:11.2]} 51. a5 {[%clk 0:00:24.4]} 51... Qf6 {[%clk
0:00:10.3]} 52. Bxb4 {[%clk 0:00:23.1]} 52... cxb4 {[%clk 0:00:11.2]} 53. Ra4
{[%clk 0:00:22.8]} 53... Qf8 {[%clk 0:00:10.5]} 54. Qg4 {[%clk 0:00:21.8]} 54...
Qxh6+ {[%clk 0:00:10.7]} 55. Qh5 {[%clk 0:00:18.8]} 55... Qxh5# {[%clk
0:00:10.4]} 0-1